[Event "*** SCC Grand Prix: Titled Tuesday Blitz"]
[Site "Chess.com"]
[Date "2020.08.11"]
[Round "6"]
[White "Chesswizard_2007"]
[Black "tk22h"]
[Result "1-0"]
[WhiteElo "2506"]
[BlackElo "2384"]
[TimeControl "180+1"]
[EndTime "11:05:11 PDT"]
[Termination "Chesswizard_2007 won by resignation"]

1. Nf3 {[%clk 0:03:00.9]} 1... Nf6 {[%clk 0:02:58.8]} 2. b3 {[%clk 0:02:59.3]}
2... d5 {[%clk 0:02:58]} 3. Bb2 {[%clk 0:03:00.2]} 3... g6 {[%clk 0:02:58.4]} 4.
Bxf6 {[%clk 0:02:58.3]} 4... exf6 {[%clk 0:02:58.2]} 5. e3 {[%clk 0:02:57.4]}
5... c6 {[%clk 0:02:58.3]} 6. d4 {[%clk 0:02:55.4]} 6... f5 {[%clk 0:02:58]} 7.
g3 {[%clk 0:02:50.5]} 7... Bg7 {[%clk 0:02:57.9]} 8. Nbd2 {[%clk 0:02:49]} 8...
O-O {[%clk 0:02:57.8]} 9. Bg2 {[%clk 0:02:48.9]} 9... Nd7 {[%clk 0:02:57.9]} 10.
O-O {[%clk 0:02:48.5]} 10... Nf6 {[%clk 0:02:58]} 11. c4 {[%clk 0:02:47]} 11...
Be6 {[%clk 0:02:56]} 12. Rc1 {[%clk 0:02:35]} 12... Ne4 {[%clk 0:02:53.3]} 13.
h4 {[%clk 0:02:30.9]} 13... h6 {[%clk 0:02:51.4]} 14. a4 {[%clk 0:02:26.5]}
14... dxc4 {[%clk 0:02:44.4]} 15. Nxc4 {[%clk 0:02:05.8]} 15... Qe7 {[%clk
0:02:43.7]} 16. Nfe5 {[%clk 0:02:04.4]} 16... Bd5 {[%clk 0:02:37.3]} 17. Qc2
{[%clk 0:01:52.7]} 17... Rad8 {[%clk 0:02:32.8]} 18. Rfd1 {[%clk 0:01:46.8]}
18... Bf6 {[%clk 0:02:29]} 19. Nd3 {[%clk 0:01:46.5]} 19... Bxc4 {[%clk
0:02:15.7]} 20. bxc4 {[%clk 0:01:28.5]} 20... Nxg3 {[%clk 0:02:10.4]} 21. fxg3
{[%clk 0:01:27.4]} 21... Qxe3+ {[%clk 0:02:10.1]} 22. Qf2 {[%clk 0:01:27]} 22...
Bxd4 {[%clk 0:02:10]} 23. Kf1 {[%clk 0:01:19.7]} 23... Qe7 {[%clk 0:02:00.2]}
24. Qf3 {[%clk 0:01:18.2]} 24... Qa3 {[%clk 0:01:41.9]} 25. Nf4 {[%clk
0:01:09.2]} 25... Qxf3+ {[%clk 0:01:40.8]} 26. Bxf3 {[%clk 0:01:10.1]} 26... Be3
{[%clk 0:01:40.8]} 27. Rc3 {[%clk 0:01:05.7]} 27... Rxd1+ {[%clk 0:01:38.5]} 28.
Bxd1 {[%clk 0:01:06.2]} 28... Bd4 {[%clk 0:01:34.8]} 29. Rb3 {[%clk 0:01:05.7]}
29... b6 {[%clk 0:01:34.5]} 30. Bf3 {[%clk 0:01:05.5]} 30... c5 {[%clk
0:01:34.3]} 31. Bd5 {[%clk 0:01:05.7]} 31... Kg7 {[%clk 0:01:34.5]} 32. a5
{[%clk 0:01:06.1]} 32... Rb8 {[%clk 0:01:32.9]} 33. a6 {[%clk 0:01:05]} 33...
Kf6 {[%clk 0:01:24]} 34. Bb7 {[%clk 0:01:04.7]} 34... Ke5 {[%clk 0:01:16.8]} 35.
Nd5 {[%clk 0:01:04.5]} 35... Kd6 {[%clk 0:01:14.7]} 36. Nxb6 {[%clk 0:01:01.6]}
36... axb6 {[%clk 0:01:14.2]} 37. a7 {[%clk 0:01:02.5]} 1-0

[Event "*** SCC Grand Prix: Titled Tuesday Blitz"]
[Site "Chess.com"]
[Date "2020.08.11"]
[Round "6"]
[White "Micki-taryan"]
[Black "ShapkinAnatoliy"]
[Result "1-0"]
[WhiteElo "3046"]
[BlackElo "2749"]
[TimeControl "180+1"]
[EndTime "11:05:15 PDT"]
[Termination "Micki-taryan won by resignation"]

1. d4 {[%clk 0:03:00.9]} 1... Nf6 {[%clk 0:02:50.1]} 2. Nf3 {[%clk 0:03:00.4]}
2... g6 {[%clk 0:02:49.5]} 3. Nc3 {[%clk 0:03:00.5]} 3... d5 {[%clk 0:02:43.4]}
4. Bf4 {[%clk 0:03:00.8]} 4... Bg7 {[%clk 0:02:42.6]} 5. Nb5 {[%clk 0:03:01.2]}
5... Na6 {[%clk 0:02:42.3]} 6. e3 {[%clk 0:03:01.7]} 6... O-O {[%clk 0:02:41.5]}
7. Be2 {[%clk 0:03:01.1]} 7... b6 {[%clk 0:02:41.7]} 8. h4 {[%clk 0:02:59.8]}
8... h5 {[%clk 0:02:41.1]} 9. Ne5 {[%clk 0:02:59]} 9... Bb7 {[%clk 0:02:40.4]}
10. g4 {[%clk 0:02:59.2]} 10... hxg4 {[%clk 0:02:38.6]} 11. Nxg4 {[%clk
0:03:00.1]} 11... Nxg4 {[%clk 0:02:21.8]} 12. Bxg4 {[%clk 0:03:01]} 12... c5
{[%clk 0:02:18.8]} 13. h5 {[%clk 0:02:56.3]} 13... Qe8 {[%clk 0:01:52.6]} 14. a4
{[%clk 0:02:37.8]} 14... e5 {[%clk 0:01:47.1]} 15. dxe5 {[%clk 0:02:33.6]} 15...
Bxe5 {[%clk 0:01:48]} 16. Nd6 {[%clk 0:02:01.5]} 16... Bxd6 {[%clk 0:01:29.9]}
17. Bxd6 {[%clk 0:02:02.4]} 17... d4 {[%clk 0:01:30.5]} 18. Bf3 {[%clk
0:01:41.6]} 18... Bxf3 {[%clk 0:01:06.4]} 19. Qxf3 {[%clk 0:01:42.5]} 19... dxe3
{[%clk 0:00:42.8]} 20. Bxf8 {[%clk 0:01:36.5]} 20... Qxf8 {[%clk 0:00:30.8]} 21.
fxe3 {[%clk 0:01:36.2]} 21... Nb4 {[%clk 0:00:29.8]} 22. O-O-O {[%clk
0:01:35.9]} 22... Qe8 {[%clk 0:00:18.6]} 23. hxg6 {[%clk 0:01:32.4]} 23... fxg6
{[%clk 0:00:16.4]} 24. c3 {[%clk 0:01:32.1]} 1-0

[Event "*** SCC Grand Prix: Titled Tuesday Blitz"]
[Site "Chess.com"]
[Date "2020.08.11"]
[Round "6"]
[White "GMJustin"]
[Black "goldihouse"]
[Result "0-1"]
[WhiteElo "2279"]
[BlackElo "2457"]
[TimeControl "180+1"]
[EndTime "11:05:20 PDT"]
[Termination "goldihouse won on time"]

1. e4 {[%clk 0:03:00.6]} 1... e6 {[%clk 0:02:58.8]} 2. f4 {[%clk 0:02:56.1]}
2... d5 {[%clk 0:02:59.7]} 3. e5 {[%clk 0:02:55.9]} 3... Nh6 {[%clk 0:02:59.5]}
4. Nf3 {[%clk 0:02:49.7]} 4... c5 {[%clk 0:02:59.5]} 5. d4 {[%clk 0:02:36.5]}
5... Bd7 {[%clk 0:02:58.6]} 6. c3 {[%clk 0:02:23.9]} 6... Nc6 {[%clk 0:02:57.7]}
7. Be3 {[%clk 0:01:36.1]} 7... Qb6 {[%clk 0:02:44.3]} 8. Qb3 {[%clk 0:01:32.9]}
8... Rc8 {[%clk 0:02:35]} 9. Qxb6 {[%clk 0:01:05]} 9... axb6 {[%clk 0:02:35.9]}
10. a3 {[%clk 0:01:02.6]} 10... Nf5 {[%clk 0:02:24.2]} 11. Bf2 {[%clk
0:01:01.6]} 11... h5 {[%clk 0:02:16.3]} 12. Nbd2 {[%clk 0:00:56.2]} 12... cxd4
{[%clk 0:02:12.8]} 13. cxd4 {[%clk 0:00:54.1]} 13... Na5 {[%clk 0:02:12.4]} 14.
Bd3 {[%clk 0:00:44.4]} 14... Nc4 {[%clk 0:02:12]} 15. Nxc4 {[%clk 0:00:27.4]}
15... dxc4 {[%clk 0:02:12.9]} 16. Bxf5 {[%clk 0:00:24.5]} 16... exf5 {[%clk
0:02:12.4]} 17. d5 {[%clk 0:00:23.3]} 17... Bc5 {[%clk 0:02:01]} 18. Bxc5 {[%clk
0:00:16.2]} 18... Rxc5 {[%clk 0:02:01.9]} 19. O-O-O {[%clk 0:00:15.1]} 19... b5
{[%clk 0:01:55]} 20. Rhe1 {[%clk 0:00:12.5]} 20... O-O {[%clk 0:01:51.6]} 21. e6
{[%clk 0:00:11.8]} 21... fxe6 {[%clk 0:01:52.5]} 22. dxe6 {[%clk 0:00:11.8]}
22... Bc6 {[%clk 0:01:53]} 23. e7 {[%clk 0:00:04.1]} 23... Re8 {[%clk
0:01:52.9]} 24. Rd8 {[%clk 0:00:04]} 24... Rd5 {[%clk 0:01:53.1]} 25. Rxe8+
{[%clk 0:00:01.5]} 25... Bxe8 {[%clk 0:01:54]} 26. Ne5 {[%clk 0:00:01.1]} 26...
Rd6 {[%clk 0:01:45.6]} 0-1

[Event "*** SCC Grand Prix: Titled Tuesday Blitz"]
[Site "Chess.com"]
[Date "2020.08.11"]
[Round "6"]
[White "stanyga"]
[Black "evgenyermolaev"]
[Result "1-0"]
[WhiteElo "2654"]
[BlackElo "2477"]
[TimeControl "180+1"]
[EndTime "11:05:23 PDT"]
[Termination "stanyga won by resignation"]

1. e4 {[%clk 0:02:58.6]} 1... d5 {[%clk 0:02:58.5]} 2. exd5 {[%clk 0:02:58]}
2... Qxd5 {[%clk 0:02:59.4]} 3. Nc3 {[%clk 0:02:57.9]} 3... Qe6+ {[%clk
0:02:58.8]} 4. Be2 {[%clk 0:02:56.1]} 4... Qg6 {[%clk 0:02:58.9]} 5. Bf3 {[%clk
0:02:48.5]} 5... e5 {[%clk 0:02:58.1]} 6. Nge2 {[%clk 0:02:46.1]} 6... Nc6
{[%clk 0:02:57.2]} 7. d4 {[%clk 0:02:42.8]} 7... Bg4 {[%clk 0:02:45.6]} 8. Bxg4
{[%clk 0:02:08.1]} 8... Qxg4 {[%clk 0:02:46.5]} 9. O-O {[%clk 0:01:42.5]} 9...
exd4 {[%clk 0:02:31.3]} 10. Nb5 {[%clk 0:01:39.8]} 10... O-O-O {[%clk
0:02:30.5]} 11. Bf4 {[%clk 0:01:39]} 11... a6 {[%clk 0:01:37]} 12. Nxc7 {[%clk
0:01:38.2]} 12... d3 {[%clk 0:01:16.3]} 13. cxd3 {[%clk 0:01:33.2]} 13... Nd4
{[%clk 0:01:15.9]} 14. Nxd4 {[%clk 0:01:25.2]} 14... Qxf4 {[%clk 0:01:14.5]} 15.
Rc1 {[%clk 0:01:24.1]} 15... Kb8 {[%clk 0:00:47.2]} 16. Nxa6+ {[%clk 0:01:22.8]}
16... bxa6 {[%clk 0:00:31.9]} 17. Nc6+ {[%clk 0:01:21.8]} 17... Kc7 {[%clk
0:00:32]} 18. Qb3 {[%clk 0:01:04]} 18... Bd6 {[%clk 0:00:26.2]} 19. Ne5+ {[%clk
0:01:03.1]} 1-0

[Event "*** SCC Grand Prix: Titled Tuesday Blitz"]
[Site "Chess.com"]
[Date "2020.08.11"]
[Round "6"]
[White "Ashedu66"]
[Black "eightbyeightchess"]
[Result "0-1"]
[WhiteElo "2267"]
[BlackElo "2448"]
[TimeControl "180+1"]
[EndTime "11:05:23 PDT"]
[Termination "eightbyeightchess won on time"]

1. d4 {[%clk 0:02:39.5]} 1... d5 {[%clk 0:02:59.8]} 2. c4 {[%clk 0:02:38]} 2...
c6 {[%clk 0:03:00.2]} 3. Nf3 {[%clk 0:02:37.6]} 3... Nf6 {[%clk 0:03:00.7]} 4.
e3 {[%clk 0:02:37.5]} 4... a6 {[%clk 0:03:00.6]} 5. Qc2 {[%clk 0:02:36.4]} 5...
Bg4 {[%clk 0:02:58.6]} 6. Nbd2 {[%clk 0:02:34.7]} 6... e6 {[%clk 0:02:58.8]} 7.
Bd3 {[%clk 0:02:34]} 7... Bd6 {[%clk 0:02:58.8]} 8. b3 {[%clk 0:02:30.9]} 8...
O-O {[%clk 0:02:58.4]} 9. Bb2 {[%clk 0:02:30.9]} 9... Nbd7 {[%clk 0:02:58]} 10.
O-O {[%clk 0:02:27.8]} 10... b5 {[%clk 0:02:57.8]} 11. c5 {[%clk 0:01:55.6]}
11... Bc7 {[%clk 0:02:56.4]} 12. Ne5 {[%clk 0:01:53.4]} 12... Nxe5 {[%clk
0:02:32.5]} 13. dxe5 {[%clk 0:01:52.7]} 13... Nd7 {[%clk 0:02:33]} 14. f4 {[%clk
0:01:25.9]} 14... g6 {[%clk 0:02:11.4]} 15. Bd4 {[%clk 0:01:08.6]} 15... Bf5
{[%clk 0:02:01]} 16. Nf3 {[%clk 0:00:41.4]} 16... Bxd3 {[%clk 0:01:52.1]} 17.
Qxd3 {[%clk 0:00:40.7]} 17... Qe7 {[%clk 0:01:50.9]} 18. Rf2 {[%clk 0:00:20.1]}
18... Nxc5 {[%clk 0:01:50.1]} 19. Qc2 {[%clk 0:00:16.2]} 19... Ne4 {[%clk
0:01:49.2]} 20. Qxc6 {[%clk 0:00:10.4]} 20... Nxf2 {[%clk 0:01:47.3]} 21. Kxf2
{[%clk 0:00:10.6]} 21... Rfc8 {[%clk 0:01:43.7]} 22. Rc1 {[%clk 0:00:08.9]}
22... Qd8 {[%clk 0:01:29.6]} 23. Qb7 {[%clk 0:00:04.4]} 23... Ba5 {[%clk
0:01:25.6]} 0-1

[Event "*** SCC Grand Prix: Titled Tuesday Blitz"]
[Site "Chess.com"]
[Date "2020.08.11"]
[Round "6"]
[White "Shota_Azaladze"]
[Black "meoluoi91"]
[Result "1-0"]
[WhiteElo "2678"]
[BlackElo "2488"]
[TimeControl "180+1"]
[EndTime "11:05:25 PDT"]
[Termination "Shota_Azaladze won by resignation"]

1. Nf3 {[%clk 0:03:00.9]} 1... d5 {[%clk 0:02:57.3]} 2. g3 {[%clk 0:03:00.4]}
2... c6 {[%clk 0:02:57.1]} 3. Bg2 {[%clk 0:03:00.9]} 3... Bf5 {[%clk 0:02:57.3]}
4. O-O {[%clk 0:03:00.9]} 4... Nd7 {[%clk 0:02:57.5]} 5. b3 {[%clk 0:03:01.3]}
5... Ngf6 {[%clk 0:02:51.6]} 6. Bb2 {[%clk 0:03:01]} 6... e6 {[%clk 0:02:51.9]}
7. c4 {[%clk 0:03:00.9]} 7... Bd6 {[%clk 0:02:48.6]} 8. d3 {[%clk 0:03:00.7]}
8... O-O {[%clk 0:02:40.1]} 9. Nbd2 {[%clk 0:02:57.4]} 9... Bc5 {[%clk
0:02:32.7]} 10. a3 {[%clk 0:02:54.6]} 10... a5 {[%clk 0:02:32.1]} 11. Nh4 {[%clk
0:02:51.5]} 11... Bg4 {[%clk 0:02:29.1]} 12. h3 {[%clk 0:02:51.1]} 12... Bh5
{[%clk 0:02:29.2]} 13. g4 {[%clk 0:02:50.8]} 13... Ne8 {[%clk 0:02:28.4]} 14.
Nf5 {[%clk 0:02:37.4]} 14... Bg6 {[%clk 0:02:17.6]} 15. d4 {[%clk 0:02:28.6]}
15... Bb6 {[%clk 0:02:00.9]} 16. Ng3 {[%clk 0:02:27.6]} 16... Bc7 {[%clk
0:01:53.9]} 17. e3 {[%clk 0:02:22.2]} 17... Bxg3 {[%clk 0:01:48.2]} 18. fxg3
{[%clk 0:02:23.1]} 18... Nd6 {[%clk 0:01:48]} 19. Qe2 {[%clk 0:02:19.7]} 19...
Nf6 {[%clk 0:01:47.2]} 20. g5 {[%clk 0:02:13.5]} 20... Nfe4 {[%clk 0:01:46.6]}
21. Nxe4 {[%clk 0:02:08.7]} 21... Nxe4 {[%clk 0:01:46.5]} 22. Bxe4 {[%clk
0:02:02.7]} 22... Bxe4 {[%clk 0:01:47.4]} 23. h4 {[%clk 0:02:02.5]} 23... f5
{[%clk 0:01:42.4]} 24. Bc3 {[%clk 0:02:00.9]} 24... a4 {[%clk 0:01:37]} 25. b4
{[%clk 0:01:51.5]} 25... dxc4 {[%clk 0:01:36.8]} 26. Qxc4 {[%clk 0:01:50.3]}
26... Bd5 {[%clk 0:01:36.9]} 27. Qe2 {[%clk 0:01:48.7]} 27... Qc7 {[%clk
0:01:23.8]} 28. Rf4 {[%clk 0:01:45.9]} 28... h6 {[%clk 0:01:14.4]} 29. gxh6
{[%clk 0:01:41.9]} 29... gxh6 {[%clk 0:01:14.3]} 30. Kh2 {[%clk 0:01:41.6]}
30... Rf7 {[%clk 0:01:09.9]} 31. Rg1 {[%clk 0:01:39.8]} 31... Kh7 {[%clk
0:01:07.6]} 32. Qh5 {[%clk 0:01:36]} 32... Rg7 {[%clk 0:00:55.1]} 33. Bd2 {[%clk
0:01:32.4]} 33... Rag8 {[%clk 0:00:54.5]} 34. e4 {[%clk 0:01:32.2]} 34... Bxe4
{[%clk 0:00:39.2]} 35. Rxe4 {[%clk 0:01:31.2]} 35... Rg5 {[%clk 0:00:39.2]} 36.
hxg5 {[%clk 0:01:29.9]} 1-0

[Event "*** SCC Grand Prix: Titled Tuesday Blitz"]
[Site "Chess.com"]
[Date "2020.08.11"]
[Round "6"]
[White "GOGIEFF"]
[Black "VishnuPrasanna"]
[Result "1-0"]
[WhiteElo "2865"]
[BlackElo "2680"]
[TimeControl "180+1"]
[EndTime "11:05:31 PDT"]
[Termination "GOGIEFF won by resignation"]

1. d4 {[%clk 0:03:00.9]} 1... d5 {[%clk 0:03:00.4]} 2. c4 {[%clk 0:02:59.5]}
2... c6 {[%clk 0:03:00.8]} 3. Nc3 {[%clk 0:02:58.9]} 3... Nf6 {[%clk 0:03:01.3]}
4. Nf3 {[%clk 0:02:57.7]} 4... dxc4 {[%clk 0:03:01.5]} 5. a4 {[%clk 0:02:57.4]}
5... Bf5 {[%clk 0:03:01.8]} 6. e3 {[%clk 0:02:57.5]} 6... e6 {[%clk 0:03:01.6]}
7. Bxc4 {[%clk 0:02:57.3]} 7... Bb4 {[%clk 0:03:01.6]} 8. O-O {[%clk 0:02:57.3]}
8... O-O {[%clk 0:03:01.7]} 9. Qe2 {[%clk 0:02:57.5]} 9... Nbd7 {[%clk
0:03:01.6]} 10. e4 {[%clk 0:02:57.6]} 10... Bg6 {[%clk 0:03:01.9]} 11. Bd3
{[%clk 0:02:57.8]} 11... Re8 {[%clk 0:02:56.4]} 12. Bf4 {[%clk 0:02:56.4]} 12...
a5 {[%clk 0:02:40.8]} 13. Rad1 {[%clk 0:02:50.3]} 13... Bf8 {[%clk 0:02:38.2]}
14. h3 {[%clk 0:02:45.4]} 14... Qb6 {[%clk 0:02:37.3]} 15. Rfe1 {[%clk
0:02:31.9]} 15... Rac8 {[%clk 0:02:36.6]} 16. e5 {[%clk 0:02:11.4]} 16... Nd5
{[%clk 0:02:36]} 17. Nxd5 {[%clk 0:02:10]} 17... cxd5 {[%clk 0:02:27.8]} 18.
Bxg6 {[%clk 0:02:04.3]} 18... fxg6 {[%clk 0:02:09.3]} 19. Rd3 {[%clk 0:01:56.2]}
19... Rc4 {[%clk 0:02:08.4]} 20. b3 {[%clk 0:01:55.1]} 20... Rc6 {[%clk
0:02:07.1]} 21. h4 {[%clk 0:01:54.8]} 21... Bb4 {[%clk 0:01:57.3]} 22. Red1
{[%clk 0:01:52.1]} 22... Rec8 {[%clk 0:01:53.3]} 23. Ng5 {[%clk 0:01:47.6]}
23... Rc3 {[%clk 0:01:45]} 24. h5 {[%clk 0:01:44.7]} 24... Nf8 {[%clk
0:01:12.9]} 25. hxg6 {[%clk 0:01:41.1]} 25... hxg6 {[%clk 0:01:08.7]} 26. Qf3
{[%clk 0:01:32.4]} 26... Rxd3 {[%clk 0:01:06.2]} 27. Rxd3 {[%clk 0:01:31.3]}
27... Be7 {[%clk 0:01:06.4]} 28. Kh2 {[%clk 0:01:24.2]} 28... Qd8 {[%clk
0:00:58.8]} 29. Qg4 {[%clk 0:01:22.2]} 29... Rc2 {[%clk 0:00:52.5]} 30. Rh3
{[%clk 0:01:15.6]} 30... Bxg5 {[%clk 0:00:36.4]} 31. Bxg5 {[%clk 0:01:14.4]}
31... Qe8 {[%clk 0:00:36.7]} 32. Qh4 {[%clk 0:01:14.1]} 1-0

[Event "*** SCC Grand Prix: Titled Tuesday Blitz"]
[Site "Chess.com"]
[Date "2020.08.11"]
[Round "6"]
[White "arminmusovic"]
[Black "keepitcool9499"]
[Result "1/2-1/2"]
[WhiteElo "2494"]
[BlackElo "2652"]
[TimeControl "180+1"]
[EndTime "11:05:32 PDT"]
[Termination "Game drawn by agreement"]

1. a3 {[%clk 0:03:00.9]} 1... e6 {[%clk 0:03:00.9]} 2. Nc3 {[%clk 0:03:01.8]}
2... d5 {[%clk 0:02:55.8]} 3. e4 {[%clk 0:03:01.9]} 3... d4 {[%clk 0:02:53.5]}
4. Nce2 {[%clk 0:03:02]} 4... c5 {[%clk 0:02:50.6]} 5. Ng3 {[%clk 0:03:02.4]}
5... Bd6 {[%clk 0:02:48.2]} 6. Bb5+ {[%clk 0:03:02.7]} 6... Bd7 {[%clk
0:02:45.8]} 7. Bxd7+ {[%clk 0:03:03.2]} 7... Nxd7 {[%clk 0:02:45.4]} 8. d3
{[%clk 0:03:04.1]} 8... Ne7 {[%clk 0:02:40.9]} 9. Qg4 {[%clk 0:02:45.5]} 9...
Ng6 {[%clk 0:02:36.9]} 10. f4 {[%clk 0:02:42.1]} 10... O-O {[%clk 0:02:23]} 11.
e5 {[%clk 0:02:20.2]} 11... Be7 {[%clk 0:02:04]} 12. Nf3 {[%clk 0:02:09.4]}
12... Qa5+ {[%clk 0:01:51.7]} 13. Bd2 {[%clk 0:02:00.6]} 13... Qb6 {[%clk
0:01:49.1]} 14. b3 {[%clk 0:02:00.8]} 14... a5 {[%clk 0:01:44.6]} 15. a4 {[%clk
0:02:00.5]} 15... f5 {[%clk 0:01:41.5]} 16. Qh5 {[%clk 0:01:48.6]} 16... Rfd8
{[%clk 0:01:27.3]} 17. h4 {[%clk 0:01:29.9]} 17... Ngf8 {[%clk 0:01:19.6]} 18.
Ng5 {[%clk 0:01:27.4]} 18... g6 {[%clk 0:01:15.6]} 19. Qh6 {[%clk 0:01:24.1]}
19... Bxg5 {[%clk 0:01:04.4]} 20. hxg5 {[%clk 0:01:21.9]} 20... c4 {[%clk
0:01:03.2]} 21. bxc4 {[%clk 0:01:11.2]} 21... Qb2 {[%clk 0:01:00.2]} 22. Ke2
{[%clk 0:01:08.4]} 22... Qxc2 {[%clk 0:00:57.5]} 23. Rhc1 {[%clk 0:01:05]} 23...
Qb3 {[%clk 0:00:54.6]} 24. Rcb1 {[%clk 0:01:00.3]} 24... Qc2 {[%clk 0:00:52.2]}
25. Rc1 {[%clk 0:00:45]} 25... Qb3 {[%clk 0:00:50]} 1/2-1/2

[Event "*** SCC Grand Prix: Titled Tuesday Blitz"]
[Site "Chess.com"]
[Date "2020.08.11"]
[Round "6"]
[White "Batsai"]
[Black "jacky72"]
[Result "1-0"]
[WhiteElo "2346"]
[BlackElo "2589"]
[TimeControl "180+1"]
[EndTime "11:05:32 PDT"]
[Termination "Batsai won by resignation"]

1. e4 {[%clk 0:03:00.9]} 1... e5 {[%clk 0:02:46.3]} 2. Nf3 {[%clk 0:02:59.2]}
2... Nc6 {[%clk 0:02:44]} 3. d4 {[%clk 0:02:59.3]} 3... exd4 {[%clk 0:02:44]} 4.
Bc4 {[%clk 0:02:59.8]} 4... Bc5 {[%clk 0:02:43.6]} 5. c3 {[%clk 0:02:58.7]} 5...
Nf6 {[%clk 0:02:35.8]} 6. e5 {[%clk 0:02:58.7]} 6... d5 {[%clk 0:02:35.5]} 7.
Bb5 {[%clk 0:02:58.7]} 7... Ne4 {[%clk 0:02:35]} 8. cxd4 {[%clk 0:02:58.5]} 8...
Bb6 {[%clk 0:02:35.1]} 9. Be3 {[%clk 0:02:48.7]} 9... O-O {[%clk 0:02:35.3]} 10.
Nbd2 {[%clk 0:02:49]} 10... Bg4 {[%clk 0:02:34.7]} 11. h3 {[%clk 0:02:47.4]}
11... Bh5 {[%clk 0:02:32.5]} 12. Bxc6 {[%clk 0:02:22.3]} 12... bxc6 {[%clk
0:02:31.2]} 13. Qc2 {[%clk 0:02:23.2]} 13... Bxf3 {[%clk 0:02:16.8]} 14. Nxf3
{[%clk 0:02:13.2]} 14... Qd7 {[%clk 0:02:15.8]} 15. O-O {[%clk 0:02:07.5]} 15...
f6 {[%clk 0:02:13.3]} 16. Rac1 {[%clk 0:02:04.2]} 16... fxe5 {[%clk 0:02:07]}
17. Nxe5 {[%clk 0:02:04]} 17... Qf5 {[%clk 0:02:04.5]} 18. Qxc6 {[%clk
0:01:59.9]} 18... Nf6 {[%clk 0:01:59.7]} 19. g4 {[%clk 0:01:43.6]} 19... Qc8
{[%clk 0:01:53.7]} 20. g5 {[%clk 0:01:43.1]} 20... Nh5 {[%clk 0:01:53.5]} 21.
Qxd5+ {[%clk 0:01:42.7]} 21... Kh8 {[%clk 0:01:54]} 22. Nf7+ {[%clk 0:01:41.1]}
22... Rxf7 {[%clk 0:01:54.3]} 23. Qxf7 {[%clk 0:01:42]} 23... Qxh3 {[%clk
0:01:55.2]} 24. Qd5 {[%clk 0:01:28.7]} 24... Rf8 {[%clk 0:01:52.9]} 25. Qg2
{[%clk 0:01:28.5]} 25... Qf5 {[%clk 0:01:53]} 26. d5 {[%clk 0:00:37.5]} 26...
Nf4 {[%clk 0:01:49.7]} 27. Bxf4 {[%clk 0:00:37.4]} 27... Qxf4 {[%clk 0:01:50.6]}
28. Rc3 {[%clk 0:00:29.8]} 28... Rf5 {[%clk 0:01:39.2]} 29. Rg3 {[%clk
0:00:25.1]} 29... Qd2 {[%clk 0:01:30.3]} 30. Rf3 {[%clk 0:00:16.2]} 30... Qxd5
{[%clk 0:01:27.5]} 31. Rxf5 {[%clk 0:00:15.7]} 31... Qxf5 {[%clk 0:01:28.4]} 32.
Qa8+ {[%clk 0:00:15.6]} 1-0

[Event "*** SCC Grand Prix: Titled Tuesday Blitz"]
[Site "Chess.com"]
[Date "2020.08.11"]
[Round "6"]
[White "denispopov"]
[Black "Sacbutt"]
[Result "1-0"]
[WhiteElo "1857"]
[BlackElo "2168"]
[TimeControl "180+1"]
[EndTime "11:05:32 PDT"]
[Termination "denispopov won by resignation"]

1. e4 {[%clk 0:03:00.9]} 1... c5 {[%clk 0:02:58.6]} 2. Nc3 {[%clk 0:02:59.8]}
2... Nc6 {[%clk 0:02:58.2]} 3. Bb5 {[%clk 0:02:58.8]} 3... g6 {[%clk 0:02:56.5]}
4. Bxc6 {[%clk 0:02:57.9]} 4... bxc6 {[%clk 0:02:56.2]} 5. d3 {[%clk 0:02:57]}
5... Bg7 {[%clk 0:02:56.4]} 6. Nge2 {[%clk 0:02:55.2]} 6... e5 {[%clk
0:02:56.6]} 7. O-O {[%clk 0:02:52.8]} 7... d6 {[%clk 0:02:56.8]} 8. Be3 {[%clk
0:02:35.6]} 8... Ne7 {[%clk 0:02:55.6]} 9. b3 {[%clk 0:02:34]} 9... O-O {[%clk
0:02:54.3]} 10. Na4 {[%clk 0:02:30.5]} 10... Be6 {[%clk 0:02:52.6]} 11. Rc1
{[%clk 0:02:24.4]} 11... f5 {[%clk 0:02:48.9]} 12. f4 {[%clk 0:02:02.5]} 12...
fxe4 {[%clk 0:02:34.7]} 13. dxe4 {[%clk 0:02:03.4]} 13... Bg4 {[%clk 0:02:34.3]}
14. h3 {[%clk 0:01:44.1]} 14... Bxe2 {[%clk 0:02:32]} 15. Qxe2 {[%clk 0:01:45]}
15... exf4 {[%clk 0:02:17.3]} 16. Bxf4 {[%clk 0:01:45.9]} 16... Bd4+ {[%clk
0:02:15.1]} 17. Kh1 {[%clk 0:01:34]} 17... Qa5 {[%clk 0:02:05.8]} 18. Bxd6
{[%clk 0:01:30.5]} 18... Rfe8 {[%clk 0:02:05.2]} 19. Qc4+ {[%clk 0:01:26.5]}
19... Kh8 {[%clk 0:01:56.1]} 20. Qf7 {[%clk 0:01:14.3]} 20... Qd8 {[%clk
0:01:53.9]} 21. Bxc5 {[%clk 0:01:08.9]} 21... Bg7 {[%clk 0:01:50.3]} 22. Rcd1
{[%clk 0:01:06]} 22... Qc7 {[%clk 0:01:48.5]} 23. Bd6 {[%clk 0:01:04.6]} 23...
Qb7 {[%clk 0:01:23.4]} 24. Nc5 {[%clk 0:01:02.2]} 24... Qb4 {[%clk 0:01:22.4]}
25. Bxe7 {[%clk 0:00:56.6]} 25... Rac8 {[%clk 0:01:15.8]} 26. Bf6 {[%clk
0:00:48.8]} 26... Rg8 {[%clk 0:01:06.9]} 27. Ne6 {[%clk 0:00:44.5]} 1-0

[Event "*** SCC Grand Prix: Titled Tuesday Blitz"]
[Site "Chess.com"]
[Date "2020.08.11"]
[Round "6"]
[White "baki83"]
[Black "TregubovP"]
[Result "1-0"]
[WhiteElo "2725"]
[BlackElo "2586"]
[TimeControl "180+1"]
[EndTime "11:05:36 PDT"]
[Termination "baki83 won by resignation"]

1. e4 {[%clk 0:03:00.9]} 1... e6 {[%clk 0:03:00.1]} 2. d4 {[%clk 0:03:00.4]}
2... d5 {[%clk 0:03:00.6]} 3. exd5 {[%clk 0:03:01.3]} 3... exd5 {[%clk
0:03:00.6]} 4. Nf3 {[%clk 0:03:01.4]} 4... Bd6 {[%clk 0:02:56.1]} 5. c4 {[%clk
0:02:59.8]} 5... Nf6 {[%clk 0:02:49.5]} 6. c5 {[%clk 0:02:58.6]} 6... Be7 {[%clk
0:02:49]} 7. Qa4+ {[%clk 0:02:55.4]} 7... c6 {[%clk 0:02:42.1]} 8. Bd3 {[%clk
0:02:51.1]} 8... O-O {[%clk 0:02:41.4]} 9. O-O {[%clk 0:02:46.5]} 9... Nbd7
{[%clk 0:02:40.3]} 10. Nc3 {[%clk 0:02:39.3]} 10... Re8 {[%clk 0:02:39.9]} 11.
Bf4 {[%clk 0:02:33.1]} 11... Nf8 {[%clk 0:02:39.4]} 12. Rfe1 {[%clk 0:02:30]}
12... Bg4 {[%clk 0:02:35.9]} 13. Ne5 {[%clk 0:02:26.7]} 13... Bh5 {[%clk
0:02:36.3]} 14. h3 {[%clk 0:02:12.5]} 14... Ne6 {[%clk 0:02:25.9]} 15. Bh2
{[%clk 0:02:05.2]} 15... Nd7 {[%clk 0:02:25.7]} 16. Nxd5 {[%clk 0:01:43.1]}
16... Bxc5 {[%clk 0:02:06]} 17. dxc5 {[%clk 0:01:36.6]} 17... Ndxc5 {[%clk
0:02:05.5]} 18. Bxh7+ {[%clk 0:01:30.8]} 18... Kxh7 {[%clk 0:02:01.7]} 19. Qc2+
{[%clk 0:01:30.1]} 19... Kg8 {[%clk 0:01:55.7]} 20. Ne3 {[%clk 0:01:27.4]} 20...
f6 {[%clk 0:01:43.4]} 21. b4 {[%clk 0:00:51.2]} 21... Na6 {[%clk 0:01:24.6]} 22.
N5c4 {[%clk 0:00:43.7]} 22... Nxb4 {[%clk 0:01:18.1]} 23. Qf5 {[%clk 0:00:39.8]}
23... g6 {[%clk 0:01:06.7]} 24. Qb1 {[%clk 0:00:37.7]} 24... g5 {[%clk
0:00:47.4]} 25. Qxb4 {[%clk 0:00:34.9]} 1-0